Workbook

Sheet Sheet2
A1: El Camino | B1: =IF(A1="","",SUMIF(Table1[Transaction],"*"&A1&"*",Table1[Amount])) -> 13800.05 | D1: Best Egg | E1: =IF(D1="","",SUMIF(Table1[Transaction],"*"&D1&"*",Table1[Amount])) -> 3055.12
A2: Best Egg | B2: =IF(A2="","",SUMIF(Table1[Transaction],"*"&A2&"*",Table1[Amount])) -> 3055.12 | D2: Headway | E2: =IF(D2="","",SUMIF(Table1[Transaction],"*"&D2&"*",Table1[Amount])) -> 19216.66
A3: Home Depot | B3: =IF(A3="","",SUMIF(Table1[Transaction],"*" & A3 & "*",Table1[Amount])) -> 110.22 | D3: San Paso | E3: =IF(D3="","",SUMIF(Table1[Transaction],"*"&D3&"*",Table1[Amount])) -> 138.04
A4: Lowe's | B4: =IF(A4="","",SUMIF(Table1[Transaction],"*"&A4&"*",Table1[Amount])) -> 1090.28 | D4: Farm Supply | E4: =IF(D4="","",SUMIF(Table1[Transaction],"*"&D4&"*",Table1[Amount])) -> 200.45
A5: Blake's | B5: =IF(A5="","",SUMIF(Table1[Transaction],"*"&A5&"*",Table1[Amount])) -> 320.53 | D5: VZWRLSS | E5: =IF(D5="","",SUMIF(Table1[Transaction],"*"&D5&"*",Table1[Amount])) -> 2042.84
A6: Tractor Supply | B6: =IF(A6="","",SUMIF(Table1[Transaction],"*"&A6&"*",Table1[Amount])) -> 473.58 | D6: Staples | E6: =IF(D6="","",SUMIF(Table1[Transaction],"*"&D6&"*",Table1[Amount])) -> 202.84
A7: Blueprinter | B7: =IF(A7="","",SUMIF(Table1[Transaction],"*"&A7&"*",Table1[Amount])) -> 76.12 | D7: Pioneer | E7: =IF(D7="","",SUMIF(Table1[Transaction],"*"&D7&"*",Table1[Amount])) -> 73.35
A8: State Farm | B8: =IF(A8="","",SUMIF(Table1[Transaction],"*"&A8&"*",Table1[Amount])) -> 2441.6 | D8: Harbor Freight | E8: =IF(D8="","",SUMIF(Table1[Transaction],"*"&D8&"*",Table1[Amount])) -> 215.3
A9: USPS | B9: =IF(A9="","",SUMIF(Table1[Transaction],"*"&A9&"*",Table1[Amount])) -> 35.01 | D9: Gov | E9: =IF(D9="","",SUMIF(Table1[Transaction],"*"&D9&"*",Table1[Amount])) -> 79.84
A10: Kritz | B10: =IF(A10="","",SUMIF(Table1[Transaction],"*"&A10&"*",Table1[Amount])) -> 1175.86 | D10: Costco | E10: =IF(D10="","",SUMIF(Table1[Transaction],"*"&D10&"*",Table1[Amount])) -> 523.89
A11: Golden | B11: =IF(A11="","",SUMIF(Table1[Transaction],"*"&A11&"*",Table1[Amount])) -> 3476.07 | D11: Third Base | E11: =IF(D11="","",SUMIF(Table1[Transaction],"*"&D11&"*",Table1[Amount])) -> 8168
A12: Templeton | B12: =IF(A12="","",SUMIF(Table1[Transaction],"*"&A12&"*",Table1[Amount])) -> 2295.98 | E12: =IF(D12="","",SUMIF(Table1[Transaction],"*"&D12&"*",Table1[Amount])) -> 
A14: Search Term: | B14: Sub-Total
B15: =SUBTOTAL(9,Table1[Amount]) -> 327102.71
B16: Date | C16: Amount | D16: Transaction
B17: 1/02 | C17: 12 | D17: Internet Transfer To 1854
B18: 1/02 | C18: 8287.79 | D18: Internet Transfer To 1854
B19: 1/03 | C19: 443.26 | D19: Internet Transfer To 1684
B20: 1/08 | C20: 280.36 | D20: Internet Transfer To 1684
B21: 1/08 | C21: 398.49 | D21: Internet Transfer To 1684
B22: 1/11 | C22: 381.89 | D22: Best Egg PAYMENT 45087375A SCOTT BRANDON
B23: 1/19 | C23: 20.31 | D23: Internet Transfer To 1684
B24: 1/19 | C24: 325 | D24: Internet Transfer To 1684
B25: 1/19 | C25: 904.26 | D25: Internet Transfer To 1684
B26: 1/19 | C26: 2453.96 | D26: Internet Transfer To 1854
B27: 1/19 | C27: 2888 | D27: Internet Transfer To 1854
B28: 1/22 | C28: 50 | D28: Internet Transfer To 1684
B29: 1/22 | C29: 800 | D29: Internet Transfer To 1854
B30: 1/23 | C30: 0.17 | D30: PPB #6601444972 PAYMENT
B31: 1/31 | C31: 10 | D31: BALANCE REQUIREMENT FEE
B32: 2/01 | C32: 288.19 | D32: POS PURCHASE EL CAMINO BUILDING SUPP Atascadero CA 000100 *****8244 0
B33: 2/01 | C33: 44.35 | D33: POS PURCHASE Third Base Market and S Paso Robles CA 679613 *****8244 0
B34: 2/01 | C34: 48.3 | D34: POS PURCHASE USA 63201 BUELLTON CA 15320 *****8244 0
B35: 2/01 | C35: 63.34 | D35: POS PURCHASE Third Base Market and S Paso Robles CA 679613 *****2385 0
B36: 2/01 | C36: 95.55 | D36: POS PURCHASE TEMPLETON MARKET TEMPLETON CA 668487 *****8244 0
B37: 2/01 | C37: 15.46 | D37: Internet Transfer To 1854
B38: 2/01 | C38: 172.39 | D38: Internet Transfer To 1684
B39: 2/01 | C39: 450 | D39: Internet Transfer To 1854
B40: 2/01 | C40: 778.85 | D40: Internet Transfer To 1854
B41: 2/02 | C41: 40 | D41: ATM WITHDRAWAL PACIFIC PREMI 545 12TH STRE PASO ROBLE CA IC1965 *****2385 0
B42: 2/02 | C42: 100 | D42: ATM WITHDRAWAL PACIFIC PREMI 545 12TH STRE PASO ROBLE CA IC1965 *****2385 0
B43: 2/02 | C43: 26.23 | D43: POS PURCHASE RITE AID 05832 PASO ROBLES CA 549000 *****8244 0
B44: 2/02 | C44: 62 | D44: POS PURCHASE GOLDEN HIL PASO ROBLES CA 00N1GR *****8244 0
B45: 2/02 | C45: 600 | D45: Internet Transfer To 1684
B46: 2/02 | C46: 1000 | D46: Internet Transfer To 1684
B47: 2/02 | C47: 1788.33 | D47: Internet Transfer To 1854
B48: 2/02 | C48: 7353.3 | D48: Internet Transfer To 1854
B49: 2/05 | C49: 29 | D49: POS PURCHASE GOLDEN HIL PASO ROBLES CA 00N1GR *****2385 0
B50: 2/05 | C50: 42.09 | D50: POS PURCHASE TRACTOR SUPPLY CO #1609 PASO ROBLES CA 090001 *****2385 0
B51: 2/05 | C51: 45.57 | D51: POS PURCHASE TRACTOR SUPPLY CO #1609 PASO ROBLES CA 090001 *****2385 0
B52: 2/05 | C52: 80.62 | D52: POS PURCHASE SMART AND FINAL 939 PASO ROBLES CA 482200 *****2385 0
B53: 2/05 | C53: 27.19 | D53: POS PURCHASE SQ *THE BLUEPRINTER & G Paso Robles CA IND100 *****8244 0
B54: 2/05 | C54: 42.2 | D54: POS PURCHASE TEMPLETON MARKET TEMPLETON CA 668487 *****8244 0
B55: 2/05 | C55: 42.99 | D55: POS PURCHASE Third Base Market and S Paso Robles CA 679613 *****8244 0
B56: 2/05 | C56: 46.44 | D56: POS PURCHASE TEMPLETON MARKET TEMPLETON CA 668487 *****8244 0
B57: 2/05 | C57: 70.33 | D57: POS PURCHASE FARM SUPPLY COMPANY P PASO ROBLES CA 000079 *****8244 0
B58: 2/05 | C58: 107.54 | D58: POS PURCHASE CKE*STREET SIDE ALE HOU ATASCADERO CA 523659 *****8244 0
B59: 2/05 | C59: 186.38 | D59: POS PURCHASE STATE FARM INSURANCE 800-956-6310 IL 00 *****2385 0
B60: 2/05 | C60: 247.55 | D60: POS PURCHASE VZWRLSS*BILL PAY VB 800-922-0204 FL INC100 *****2385 0
B61: 2/06 | C61: 59 | D61: POS PURCHASE PASO PETCARE VETERINARY PASO ROBLES CA IN8900 *****2385 0
B62: 2/06 | C62: 1840 | D62: TELLER WITHDRAWL
B63: 2/06 | C63: 2223.9 | D63: Internet Transfer To 1854
B64: 2/07 | C64: 46.69 | D64: POS PURCHASE TEMPLETON MARKET TEMPLETON CA 668487 *****8244 0
B65: 2/08 | C65: 23.08 | D65: POS PURCHASE TEMPLETON MARKET TEMPLETON CA 668487 *****8244 0
B66: 2/08 | C66: 31.5 | D66: POS PURCHASE GOLDEN HIL PASO ROBLES CA 00N1GR *****8244 0
B67: 2/08 | C67: 41.87 | D67: POS PURCHASE TEMPLETON MARKET TEMPLETON CA 668487 *****8244 0
B68: 2/09 | C68: 4.4 | D68: POS PURCHASE USPS PO 05777004 101 N TEMPLETON CA 999999 *****2385 0
B69: 2/09 | C69: 23.25 | D69: POS PURCHASE GOLDEN HIL PASO ROBLES CA 00N1GR *****8244 0
B70: 2/09 | C70: 87.96 | D70: POS PURCHASE FOOD 4 LESS 0012 PASO ROBLES CA 986142 *****8244 0
B71: 2/09 | C71: 1000 | D71: POS PURCHASE Third Base Market and S Paso Robles CA 679613 *****8244 0
B72: 2/09 | C72: 52.5 | D72: POS PURCHASE GOLDEN HIL PASO ROBLES CA 00N1GR *****8244 0
B73: 2/09 | C73: 54.74 | D73: POS PURCHASE Third Base Market and S Paso Robles CA 679613 *****8244 0
B74: 2/12 | C74: 22.84 | D74: POS PURCHASE EL CAMINO BUILDING SUPP Atascadero CA 000100 *****8244 0
B75: 2/12 | C75: 25.37 | D75: POS PURCHASE TEMPLETON MARKET TEMPLETON CA 668487 *****8244 0
B76: 2/12 | C76: 45.61 | D76: POS PURCHASE SMART AND FINAL 939 PASO ROBLES CA 482200 *****8244 0
B77: 2/12 | C77: 817.26 | D77: POS PURCHASE EL CAMINO BUILDING SUPP Atascadero CA 000100 *****8244 0
B78: 2/12 | C78: 40 | D78: POS PURCHASE Third Base Market and S Paso Robles CA 679613 *****8244 0
B79: 2/12 | C79: 442.38 | D79: Internet Transfer To 1854
B80: 2/13 | C80: 8.66 | D80: POS PURCHASE CV
B81: 2/13 | C81: 64 | D81: POS PURCHASE EL CAMINO BUILDING SUPP Atascadero CA 000100 *****8244 0
B82: 2/13 | C82: 84.32 | D82: POS PURCHASE OAK HILL MARKET PASO ROBLES CA 832598 *****8244 0
B83: 2/13 | C83: 40 | D83: POS PURCHASE Third Base Market and S Paso Robles CA 679613 *****8244 0
B84: 2/13 | C84: 44.35 | D84: POS PURCHASE Third Base Market and S Paso Robles CA 679613 *****8244 0
B85: 2/13 | C85: 381.89 | D85: Best Egg PAYMENT 45087375A SCOTT BRANDON
B86: 2/14 | C86: 13.03 | D86: POS PURCHASE TEMPLETON MARKET TEMPLETON CA 668487 *****8244 0
B87: 2/14 | C87: 14.36 | D87: POS PURCHASE LOWE'S #2730 PASO ROBLES CA 001 *****8244 0
B88: 2/14 | C88: 23 | D88: POS PURCHASE GOLDEN HIL PASO ROBLES CA 00N1GR *****8244 0
B89: 2/14 | C89: 41.28 | D89: POS PURCHASE LOWE'S #2730 PASO ROBLES CA 001 *****8244 0
B90: 2/15 | C90: 31 | D90: POS PURCHASE GOLDEN HIL PASO ROBLES CA 00N1GR *****8244 0
B91: 2/15 | C91: 30 | D91: POS PURCHASE GOLDEN HIL PASO ROBLES CA 00N1GR *****8244 0
B92: 2/15 | C92: 39.6 | D92: POS PURCHASE TST* OFF THE 46 MEXICAN Paso Robles CA IN0700 *****8244 0
B93: 2/15 | C93: 48.09 | D93: POS PURCHASE TEMPLETON MARKET TEMPLETON CA 668487 *****8244 0
B94: 2/15 | C94: 100 | D94: CAPITAL ON
B95: 2/15 | C95: 340 | D95: DISCOVE
B96: 2/16 | C96: 31.99 | D96: POS PURCHASE GOLDEN HIL PASO ROBLES CA 00N1GR *****8244 0
B97: 2/16 | C97: 44.35 | D97: POS PURCHASE Third Base Market and S Paso Robles CA 679613 *****8244 0
B98: 2/20 | C98: 26.18 | D98: POS PURCHASE TEMPLETON MARKET TEMPLETON CA 668487 *****8244 0
B99: 2/20 | C99: 120.01 | D99: POS PURCHASE FOOD 4 LESS 0012 PASO ROBLES CA 986142 *****2385 0
B100: 2/20 | C100: 60 | D100: POS PURCHASE GOLDEN HIL PASO ROBLES CA 00N1GR *****8244 0
B101: 2/21 | C101: 33.69 | D101: POS PURCHASE TRACTOR SUPPLY CO #1609 PASO ROBLES CA 090001 *****2385 0
B102: 2/21 | C102: 12.08 | D102: POS PURCHASE SQ *JOEBELLA COFFEE PAS Paso Robles CA INB800 *****8244 0
B103: 2/21 | C103: 66.05 | D103: POS PURCHASE TEMPLETON MARKET TEMPLETON CA 668487 *****8244 0
B104: 2/22 | C104: 7.7 | D104: POS PURCHASE LOWE'S #2730 PASO ROBLES CA 001 *****8244 0
B105: 2/22 | C105: 11.02 | D105: POS PURCHASE SMART AND FINAL 939 PASO ROBLES CA 482200 *****8244 0
B106: 2/22 | C106: 22 | D106: POS PURCHASE GOLDEN HIL PASO ROBLES CA 00N1GR *****8244 0
B107: 2/22 | C107: 25.5 | D107: POS PURCHASE GOLDEN HIL PASO ROBLES CA 00N1GR *****8244 0
B108: 2/22 | C108: 11.7 | D108: POS PURCHASE THIRD BASE MARKET AND S PASO ROBLES CA 00 *****8244 0
B109: 2/22 | C109: 44.35 | D109: POS PURCHASE Third Base Market and S Paso Robles CA 679613 *****8244 0
B110: 2/22 | C110: 2120 | D110: TELLER WITHDRAWL
B111: 2/22 | C111: 438.96 | D111: Internet Transfer To 1854
B112: 2/23 | C112: 50.16 | D112: POS PURCHASE SAN PASO TRUCK STOP PASO ROBLES CA 552145 *****8244 0
B113: 2/23 | C113: 23.69 | D113: PPB #6601444972 PAYMENT
B114: 2/26 | C114: 13.48 | D114: POS PURCHASE PLEYTO STORE BRADLEY CA 00 *****8244 0
B115: 2/27 | C115: 55.8 | D115: POS PURCHASE SPRING STREET MART PASO ROBLES CA 107212 *****8244 0
B116: 2/29 | C116: 47.91 | D116: POS PURCHASE SMART AND FINAL 392 PASO ROBLES CA 481922 *****8244 0
B117: 2/29 | C117: 48.61 | D117: POS PURCHASE Third Base Market and S Paso Robles CA 679613 *****8244 0
B118: 2/29 | C118: 0.2 | D118: DEPOSIT CORRECTION DEBIT
B119: 2/29 | C119: 2177.19 | D119: HEADWAYCAPITAL
B120: 2/29 | C120: 10 | D120: BALANCE REQUIREMENT FEE
B121: 2/29 | C121: 2 | D121: PAPER STATEMENT FEE
B122: 3/01 | C122: 1175.86 | D122: POS PURCHASE KRITZ EXCAVATING AND T PASO ROBLES CA 090286 *****2385 0
B123: 3/01 | C123: 66.43 | D123: POS PURCHASE Third Base Market and S Paso Robles CA 679613 *****8244 0
B124: 3/01 | C124: 12 | D124: Internet Transfer To 1854
B125: 3/01 | C125: 2667.3 | D125: Internet Transfer To 1684
B126: 3/04 | C126: 9.65 | D126: POS PURCHASE TEMPLETON MARKET TEMPLETON CA 668487 *****8244 0
B127: 3/04 | C127: 16 | D127: POS PURCHASE GOLDEN HIL PASO ROBLES CA 00N1GR *****8244 0
B128: 3/04 | C128: 23.88 | D128: POS PURCHASE NST THE HOME DEPOT 0029 ATASCADERO CA 061394 *****8244 0
B129: 3/04 | C129: 29 | D129: POS PURCHASE GOLDEN HIL PASO ROBLES CA 00N1GR *****8244 0
B130: 3/04 | C130: 61.98 | D130: POS PURCHASE TRACTOR SUPPLY CO #1609 PASO ROBLES CA 090001 *****2385 0
B131: 3/04 | C131: 73.58 | D131: POS PURCHASE SPENCER S FRESH MARKETS MORRO BAY CA 447745 *****2385 0
B132: 3/04 | C132: 16.31 | D132: POS PURCHASE SQ *THE BLUEPRINTER & G Paso Robles CA IN4400 *****8244 0
B133: 3/04 | C133: 44.35 | D133: POS PURCHASE Third Base Market and S Paso Robles CA 679613 *****8244 0
B134: 3/04 | C134: 52.68 | D134: POS PURCHASE TEMPLETON MARKET TEMPLETON CA 668487 *****8244 0
B135: 3/04 | C135: 54.14 | D135: POS PURCHASE TEMPLETON MARKET TEMPLETON CA 668487 *****8244 0
B136: 3/04 | C136: 393.1 | D136: POS PURCHASE VZWRLSS*BILL PAY VB 800-922-0204 FL IN2000 *****2385 0
B137: 3/05 | C137: 19.28 | D137: POS PURCHASE CV
B138: 3/05 | C138: 85.17 | D138: POS PURCHASE LOWE'S #2730 PASO ROBLES CA 001 *****8244 0
B139: 3/05 | C139: 12.93 | D139: POS PURCHASE COFFEE BEAN AND TEA LEA PISMO BEACH CA 823960 *****8244 0
B140: 3/05 | C140: 40 | D140: POS PURCHASE Third Base Market and S Paso Robles CA 679613 *****8244 0
B141: 3/05 | C141: 43.91 | D141: POS PURCHASE TEMPLETON MARKET TEMPLETON CA 668487 *****8244 0
B142: 3/06 | C142: 2376.09 | D142: Internet Transfer To 1854
B143: 3/06 | C143: 4200 | D143: Internet Transfer To 1854
B144: 3/07 | C144: 10.99 | D144: POS PURCHASE GOLDEN HILL 76 PASO ROBLES CA 00N1GR *****8244 0
B145: 3/07 | C145: 23.43 | D145: POS PURCHASE OAK HILL MARKET PASO ROBLES CA 832598 *****8244 0
B146: 3/07 | C146: 46.69 | D146: POS PURCHASE TEMPLETON MARKET TEMPLETON CA 668487 *****8244 0
B147: 3/07 | C147: 47.88 | D147: POS PURCHASE SAN PASO TRUCK STOP PASO ROBLES CA 552145 *****8244 0
B148: 3/08 | C148: 32.99 | D148: POS PURCHASE GOLDEN HIL PASO ROBLES CA 00N1GR *****8244 0
B149: 3/08 | C149: 220.78 | D149: POS PURCHASE BLAKE'S TRUE VALUE PASO ROBLES CA 000045 *****8244 0
B150: 3/11 | C150: 14.38 | D150: POS PURCHASE HAYWARD LUMBER SLO SAN LUIS OBIS CA 986834 *****8244 0
B151: 3/11 | C151: 17.74 | D151: POS PURCHASE GOLDEN HIL PASO ROBLES CA 00N1GR *****8244 0
B152: 3/11 | C152: 35.44 | D152: POS PURCHASE CV
B153: 3/11 | C153: 48.81 | D153: POS PURCHASE SMART AND FINAL 939 PASO ROBLES CA 482200 *****8244 0
B154: 3/11 | C154: 131.33 | D154: POS PURCHASE FOOD 4 LESS 0012 PASO ROBLES CA 986142 *****2385 0
B155: 3/11 | C155: 155.49 | D155: POS PURCHASE Lemos Feed & Pet Supply Paso Robles CA 000100 *****2385 0
B156: 3/11 | C156: 44.35 | D156: POS PURCHASE Third Base Market and S Paso Robles CA 679613 *****8244 0
B157: 3/11 | C157: 46.5 | D157: POS PURCHASE GOLDEN HIL PASO ROBLES CA 00N1GR *****8244 0
B158: 3/11 | C158: 48.18 | D158: POS PURCHASE TEMPLETON MARKET TEMPLETON CA 668487 *****8244 0
B159: 3/11 | C159: 73.35 | D159: POS PURCHASE SES PIONEER MART PASO ROBLES CA 460587 *****8244 0
B160: 3/11 | C160: 780 | D160: Internet Transfer To 1854
B161: 3/11 | C161: 1312.27 | D161: Internet Transfer To 1854
B162: 3/11 | C162: 6576.09 | D162: Internet Transfer To 1854
B163: 3/12 | C163: 27.19 | D163: POS PURCHASE EL CAMINO BUILDING SUPP Atascadero CA 000100 *****8244 0
B164: 3/12 | C164: 57.21 | D164: POS PURCHASE LOWE'S #2730 PASO ROBLES CA 001 *****8244 0
B165: 3/12 | C165: 40 | D165: POS PURCHASE TEMPLETON MARKET TEMPLETON CA 668487 *****8244 0
B166: 3/12 | C166: 381.89 | D166: Best Egg PAYMENT 45087375A SCOTT BRANDON
B167: 3/13 | C167: 16.17 | D167: POS PURCHASE RITE AID 05832 PASO ROBLES CA 549000 *****8244 0
B168: 3/13 | C168: 44.35 | D168: POS PURCHASE Third Base Market and S Paso Robles CA 679613 *****8244 0
B169: 3/13 | C169: 66 | D169: DISCOVE
B170: 3/14 | C170: 34.44 | D170: POS PURCHASE GOLDEN HIL PASO ROBLES CA 00N1GR *****8244 0
B171: 3/14 | C171: 42.99 | D171: POS PURCHASE Third Base Market and S Paso Robles CA 679613 *****8244 0
B172: 3/15 | C172: 11 | D172: POS PURCHASE GOLDEN HILL 76 PASO ROBLES CA 00N1GR *****8244 0
B173: 3/15 | C173: 42.98 | D173: POS PURCHASE TEMPLETON MARKET TEMPLETON CA 668487 *****8244 0
B174: 3/18 | C174: 58.9 | D174: POS PURCHASE Third Base Market and S Paso Robles CA 679613 *****8244 0
B175: 3/20 | C175: 9.79 | D175: POS PURCHASE EL CAMINO BUILDING SUPP Atascadero CA 000100 *****8244 0
B176: 3/20 | C176: 11.5 | D176: POS PURCHASE GOLDEN HILL 76 PASO ROBLES CA 00N1GR *****8244 0
B177: 3/20 | C177: 26.6 | D177: POS PURCHASE LOWE'S #27 PASO ROBLES CA 001 *****8244 0
B178: 3/20 | C178: 30.44 | D178: POS PURCHASE SPECIALTY PET SUPPLY ATASCADERO CA 075454 *****2385 0
B179: 3/20 | C179: 55.43 | D179: POS PURCHASE COSTCO WHSE #0741 SAN LUIS OBIS CA 990741 *****2385 0
B180: 3/20 | C180: 39.84 | D180: POS PURCHASE SP NATURAL ALTERNATIVE 180-52378290 CA CLIE7O *****8244 0
B181: 3/20 | C181: 49.59 | D181: POS PURCHASE Third Base Market and S Paso Robles CA 679613 *****8244 0
B182: 3/20 | C182: 50 | D182: POS PURCHASE Third Base Market and S Paso Robles CA 679613 *****2385 0
B183: 3/21 | C183: 8.73 | D183: POS PURCHASE USPS PO 05777004 101 N TEMPLETON CA 999999 *****2385 0
B184: 3/21 | C184: 11.74 | D184: POS PURCHASE TEMPLETON MARKET TEMPLETON CA 668487 *****8244 0
B185: 3/21 | C185: 54.35 | D185: POS PURCHASE Third Base Market and S Paso Robles CA 679613 *****8244 0
B186: 3/21 | C186: 396.32 | D186: TELLER WITHDRAWL
B187: 3/21 | C187: 100 | D187: Internet Transfer To 1684
B188: 3/21 | C188: 340 | D188: Internet Transfer To 1854
B189: 3/21 | C189: 675.12 | D189: Internet Transfer To 1684
B190: 3/21 | C190: 800 | D190: Internet Transfer To 1854
B191: 3/21 | C191: 7889.65 | D191: Internet Transfer To 1854
B192: 3/22 | C192: 16.92 | D192: POS PURCHASE TEMPLETON MARKET TEMPLETON CA 668487 *****8244 0
B193: 3/22 | C193: 26.99 | D193: POS PURCHASE GOLDEN HIL PASO ROBLES CA 00N1GR *****8244 0
B194: 3/22 | C194: 88.07 | D194: POS PURCHASE Lemos Feed & Pet Supply Paso Robles CA 000100 *****2385 0
B195: 3/22 | C195: 44.35 | D195: POS PURCHASE Third Base Market and S Paso Robles CA 679613 *****8244 0
B196: 3/22 | C196: 100 | D196: CAPITAL ON
B197: 3/25 | C197: 4.5 | D197: POS PURCHASE GOLDEN HILL 76 PASO ROBLES CA 00N1GR *****8244 0
B198: 3/25 | C198: 11.75 | D198: POS PURCHASE GOLDEN HILL 76 PASO ROBLES CA 00N1GR *****8244 0
B199: 3/25 | C199: 71.42 | D199: POS PURCHASE GROCERY OUTLET OF PASO PASO ROBLES CA 820627 *****2385 0
B200: 3/25 | C200: 149.38 | D200: POS PURCHASE FOOD 4 LESS 0012 PASO ROBLES CA 986142 *****2385 0
B201: 3/25 | C201: 8 | D201: POS PURCHASE RITE AID 05832 PASO ROBLES CA 549000 *****8244 0
... 576 more rows
